[Event "Titled Tuesday Blitz March 21 Late 2023"]
[White "2good4u734"]
[Black "Winkels, Marcel"]
[BlackFideId "1003887"]
[WhiteElo "2217"]
[BlackElo "1900"]
[Result "0-1"]
[Round "06"]
[TimeControl "180+2"]
[Date "2023.03.21"]
[WhiteClock "0:00:05"]
[BlackClock "0:00:45"]

1. g3 {[%clk 0:02:53]}  e5 {[%clk 0:02:57]} 2. Bg2 {[%clk 0:02:54]}  Nf6 {[%clk 0:02:57]} 3. d3 {[%clk 0:02:54]}  Bc5 {[%clk 0:02:57]} 4. Nf3 {[%clk 0:02:54]}  d6 {[%clk 0:02:56]} 5. O-O {[%clk 0:02:44]}  O-O {[%clk 0:02:55]} 6. a3 {[%clk 0:02:41]}  a5 {[%clk 0:02:54]} 7. c4 {[%clk 0:02:31]}  Nc6 {[%clk 0:02:51]} 8. Nc3 {[%clk 0:02:30]}  h6 {[%clk 0:02:45]} 9. Rb1 {[%clk 0:02:21]}  Be6 {[%clk 0:02:39]} 10. Bd2 {[%clk 0:02:16]}  Qd7 {[%clk 0:02:38]} 11. Na4 {[%clk 0:02:13]}  Ba7 {[%clk 0:02:36]} 12. b4 {[%clk 0:02:12]}  axb4 {[%clk 0:02:34]} 13. axb4 {[%clk 0:02:13]}  Bh3 {[%clk 0:02:31]} 14. c5 {[%clk 0:02:06]}  Bxg2 {[%clk 0:02:27]} 15. Kxg2 {[%clk 0:02:06]}  e4 {[%clk 0:02:26]} 16. dxe4 {[%clk 0:01:55]}  Nxe4 {[%clk 0:02:23]} 17. Bf4 {[%clk 0:01:55]}  d5 {[%clk 0:02:18]} 18. b5 {[%clk 0:01:53]}  Ne7 {[%clk 0:02:06]} 19. Ne5 {[%clk 0:01:26]}  Qe6 {[%clk 0:01:57]} 20. Qc2 {[%clk 0:01:21]}  g5 {[%clk 0:01:48]} 21. b6 {[%clk 0:00:59]}  cxb6 {[%clk 0:01:43]} 22. Nxb6 {[%clk 0:00:43]}  Rad8 {[%clk 0:01:34]} 23. Ned7 {[%clk 0:00:25]}  Rxd7 {[%clk 0:01:27]} 24. Nxd7 {[%clk 0:00:23]}  Qxd7 {[%clk 0:01:27]} 25. Be3 {[%clk 0:00:16]}  Qe6 {[%clk 0:01:17]} 26. Rb5 {[%clk 0:00:15]}  Nf5 {[%clk 0:01:16]} 27. Bc1 {[%clk 0:00:13]}  Rc8 {[%clk 0:01:12]} 28. Bb2 {[%clk 0:00:13]}  Rxc5 {[%clk 0:01:09]} 29. Rxc5 {[%clk 0:00:12]}  Bxc5 {[%clk 0:01:09]} 30. e3 {[%clk 0:00:12]}  Ne7 {[%clk 0:01:04]} 31. Rc1 {[%clk 0:00:10]}  b6 {[%clk 0:01:02]} 32. f3 {[%clk 0:00:07]}  Bxe3 {[%clk 0:00:51]} 33. fxe4 {[%clk 0:00:07]}  Bxc1 {[%clk 0:00:50]} 34. Bxc1 {[%clk 0:00:05]}  Qxe4+ {[%clk 0:00:50]} 35. Qxe4 {[%clk 0:00:05]}  dxe4 {[%clk 0:00:50]} 36. Kf2 {[%clk 0:00:04]}  f5 {[%clk 0:00:49]} 37. Ke3 {[%clk 0:00:03]}  Nc6 {[%clk 0:00:48]} 38. Bb2 {[%clk 0:00:02]}  Kf7 {[%clk 0:00:48]} 39. g4 {[%clk 0:00:03]}  Ke6 {[%clk 0:00:47]} 40. gxf5+ {[%clk 0:00:03]}  Kxf5 {[%clk 0:00:47]} 41. Bg7 {[%clk 0:00:04]}  h5 {[%clk 0:00:47]} 42. Bh6 {[%clk 0:00:03]}  g4 {[%clk 0:00:47]} 43. Bf4 {[%clk 0:00:03]}  h4 {[%clk 0:00:46]} 44. Bc7 {[%clk 0:00:04]}  b5 {[%clk 0:00:45]} 45. Bd6 {[%clk 0:00:04]}  b4 {[%clk 0:00:45]} 46. Bf8 {[%clk 0:00:04]}  b3 {[%clk 0:00:45]} 47. Bg7 {[%clk 0:00:05]}  Ne5 {[%clk 0:00:45]} 0-1


[Site "https://www.chess.com"]

[Event "Titled Tuesday Blitz March 21 Late 2023"]
[White "Svane, Rasmus"]
[Black "Maghsoodloo, Parham"]
[WhiteFideId "4657101"]
[BlackFideId "12539929"]
[WhiteElo "2597"]
[BlackElo "2647"]
[Result "0-1"]
[Round "07"]
[TimeControl "180+2"]
[Date "2023.03.21"]
[WhiteClock "0:00:04"]
[BlackClock "0:00:03"]

1. Nf3 {[%clk 0:03:00]}  d5 {[%clk 0:02:56]} 2. g3 {[%clk 0:03:00]}  c6 {[%clk 0:02:56]} 3. Bg2 {[%clk 0:03:00]}  Bg4 {[%clk 0:02:56]} 4. O-O {[%clk 0:03:00]}  Nd7 {[%clk 0:02:56]} 5. h3 {[%clk 0:03:01]}  Bh5 {[%clk 0:02:56]} 6. d4 {[%clk 0:03:01]}  Ngf6 {[%clk 0:02:53]} 7. c4 {[%clk 0:03:01]}  e6 {[%clk 0:02:52]} 8. cxd5 {[%clk 0:03:00]}  exd5 {[%clk 0:02:51]} 9. Ne5 {[%clk 0:03:00]}  Ne4 {[%clk 0:02:49]} 10. Bxe4 {[%clk 0:02:59]}  dxe4 {[%clk 0:02:50]} 11. Nc3 {[%clk 0:02:59]}  f6 {[%clk 0:02:42]} 12. Nc4 {[%clk 0:02:57]}  f5 {[%clk 0:02:18]} 13. d5 {[%clk 0:02:49]}  Bf7 {[%clk 0:02:12]} 14. Bf4 {[%clk 0:02:25]}  Nb6 {[%clk 0:02:04]} 15. dxc6 {[%clk 0:02:11]}  bxc6 {[%clk 0:02:04]} 16. Ne5 {[%clk 0:02:07]}  Qxd1 {[%clk 0:01:55]} 17. Rfxd1 {[%clk 0:02:07]}  Rc8 {[%clk 0:01:48]} 18. g4 {[%clk 0:01:47]}  g6 {[%clk 0:01:42]} 19. a4 {[%clk 0:01:42]}  a5 {[%clk 0:01:38]} 20. Be3 {[%clk 0:01:16]}  Nc4 {[%clk 0:01:32]} 21. Nxf7 {[%clk 0:01:16]}  Kxf7 {[%clk 0:01:31]} 22. Bd4 {[%clk 0:01:17]}  Rg8 {[%clk 0:01:28]} 23. b3 {[%clk 0:01:17]}  Nd6 {[%clk 0:01:23]} 24. Bb6 {[%clk 0:01:17]}  Ra8 {[%clk 0:01:22]} 25. Rd2 {[%clk 0:01:11]}  Ke6 {[%clk 0:01:05]} 26. Rad1 {[%clk 0:01:11]}  Rg7 {[%clk 0:01:03]} 27. e3 {[%clk 0:01:07]}  Rb7 {[%clk 0:00:58]} 28. Bc5 {[%clk 0:01:02]}  Nc4 {[%clk 0:00:57]} 29. bxc4 {[%clk 0:00:47]}  Bxc5 {[%clk 0:00:57]} 30. Ne2 {[%clk 0:00:47]}  Rab8 {[%clk 0:00:57]} 31. Nf4+ {[%clk 0:00:43]}  Ke7 {[%clk 0:00:56]} 32. Kg2 {[%clk 0:00:40]}  Ke8 {[%clk 0:00:51]} 33. gxf5 {[%clk 0:00:34]}  gxf5 {[%clk 0:00:50]} 34. Nh5 {[%clk 0:00:34]}  Ke7 {[%clk 0:00:44]} 35. Ng3 {[%clk 0:00:24]}  Ke6 {[%clk 0:00:42]} 36. Nh5 {[%clk 0:00:24]}  Rb2 {[%clk 0:00:37]} 37. Nf4+ {[%clk 0:00:24]}  Ke5 {[%clk 0:00:28]} 38. Rd5+ {[%clk 0:00:18]}  cxd5 {[%clk 0:00:28]} 39. Rxd5+ {[%clk 0:00:19]}  Kf6 {[%clk 0:00:28]} 40. Rxc5 {[%clk 0:00:20]}  Ra2 {[%clk 0:00:25]} 41. Nh5+ {[%clk 0:00:15]}  Ke6 {[%clk 0:00:24]} 42. Ng7+ {[%clk 0:00:15]}  Kd6 {[%clk 0:00:24]} 43. Rxf5 {[%clk 0:00:14]}  Rxa4 {[%clk 0:00:17]} 44. c5+ {[%clk 0:00:15]}  Kc6 {[%clk 0:00:15]} 45. Ne6 {[%clk 0:00:15]}  Rg8+ {[%clk 0:00:14]} 46. Kh2 {[%clk 0:00:11]}  Ra1 {[%clk 0:00:13]} 47. Nd4+ {[%clk 0:00:11]}  Kb7 {[%clk 0:00:10]} 48. c6+ {[%clk 0:00:10]}  Kb6 {[%clk 0:00:11]} 49. Rb5+ {[%clk 0:00:10]}  Ka6 {[%clk 0:00:10]} 50. Rb7 {[%clk 0:00:06]}  Rag1 {[%clk 0:00:05]} 51. h4 {[%clk 0:00:06]}  R8g2+ {[%clk 0:00:04]} 52. Kh3 {[%clk 0:00:06]}  Rg7 {[%clk 0:00:04]} 53. Rb8 {[%clk 0:00:04]}  Rh1# {[%clk 0:00:03]} 0-1


[Site "https://www.chess.com"]

[Event "Titled Tuesday Blitz March 21 Late 2023"]
[White "Van Foreest, Jorden"]
[Black "Svane, Frederik"]
[WhiteFideId "1039784"]
[BlackFideId "12923044"]
[WhiteElo "2633"]
[BlackElo "2502"]
[Result "1-0"]
[Round "07"]
[TimeControl "180+2"]
[Date "2023.03.21"]
[WhiteClock "0:01:08"]
[BlackClock "0:00:08"]

1. e4 {[%clk 0:03:00]}  c5 {[%clk 0:02:59]} 2. Nf3 {[%clk 0:03:00]}  d6 {[%clk 0:03:00]} 3. d4 {[%clk 0:03:00]}  cxd4 {[%clk 0:03:01]} 4. Nxd4 {[%clk 0:03:00]}  Nf6 {[%clk 0:03:02]} 5. Nc3 {[%clk 0:03:01]}  Nc6 {[%clk 0:03:02]} 6. Bb5 {[%clk 0:02:53]}  Bd7 {[%clk 0:02:55]} 7. Be3 {[%clk 0:02:54]}  e6 {[%clk 0:02:44]} 8. Qe2 {[%clk 0:02:48]}  Nxd4 {[%clk 0:02:33]} 9. Bxd4 {[%clk 0:02:47]}  Bxb5 {[%clk 0:02:31]} 10. Qxb5+ {[%clk 0:02:47]}  Qd7 {[%clk 0:02:31]} 11. O-O-O {[%clk 0:02:43]}  a6 {[%clk 0:02:23]} 12. Qe2 {[%clk 0:02:39]}  Be7 {[%clk 0:02:18]} 13. f4 {[%clk 0:02:35]}  Qc6 {[%clk 0:01:43]} 14. g4 {[%clk 0:02:34]}  O-O {[%clk 0:01:43]} 15. g5 {[%clk 0:02:35]}  Nd7 {[%clk 0:01:44]} 16. Rhg1 {[%clk 0:02:28]}  b5 {[%clk 0:01:43]} 17. Rd3 {[%clk 0:02:16]}  b4 {[%clk 0:01:13]} 18. Rh3 {[%clk 0:01:51]}  bxc3 {[%clk 0:01:07]} 19. Rxh7 {[%clk 0:01:08]}  Kxh7 {[%clk 0:00:08]} 20. Qh5+ {[%clk 0:01:08]}  Kg8 {[%clk 0:00:09]} 21. Bxg7 {[%clk 0:01:08]}  Kxg7 {[%clk 0:00:06]} 22. Qh6+ {[%clk 0:01:08]}  Kg8 {[%clk 0:00:07]} 23. g6 {[%clk 0:01:09]}  Nf6 {[%clk 0:00:07]} 24. gxf7+ {[%clk 0:01:07]}  Kxf7 {[%clk 0:00:08]} 25. Qg6# {[%clk 0:01:08]} 1-0


[Site "https://www.chess.com"]

[Event "Titled Tuesday Blitz March 21 Late 2023"]
[White "Firouzja, Alireza"]
[Black "Indjic, Aleksandar"]
[WhiteFideId "12573981"]
[BlackFideId "911925"]
[WhiteElo "2904"]
[BlackElo "2614"]
[Result "1-0"]
[Round "07"]
[TimeControl "180+2"]
[Date "2023.03.21"]
[WhiteClock "0:01:14"]
[BlackClock "0:00:17"]

1. e4 {[%clk 0:02:59]}  c5 {[%clk 0:02:59]} 2. Nf3 {[%clk 0:02:57]}  d6 {[%clk 0:02:59]} 3. d4 {[%clk 0:02:55]}  cxd4 {[%clk 0:03:00]} 4. Nxd4 {[%clk 0:02:55]}  Nf6 {[%clk 0:03:00]} 5. Nc3 {[%clk 0:02:53]}  a6 {[%clk 0:03:01]} 6. Be3 {[%clk 0:02:52]}  e5 {[%clk 0:03:00]} 7. Nf3 {[%clk 0:02:51]}  Be7 {[%clk 0:02:59]} 8. h3 {[%clk 0:02:48]}  O-O {[%clk 0:02:40]} 9. g4 {[%clk 0:02:47]}  Be6 {[%clk 0:02:11]} 10. g5 {[%clk 0:02:47]}  Nfd7 {[%clk 0:02:11]} 11. Nd5 {[%clk 0:02:47]}  Bxd5 {[%clk 0:02:01]} 12. Qxd5 {[%clk 0:02:48]}  Qc7 {[%clk 0:01:58]} 13. O-O-O {[%clk 0:02:41]}  Nc6 {[%clk 0:01:54]} 14. Kb1 {[%clk 0:02:34]}  b5 {[%clk 0:01:46]} 15. Nh4 {[%clk 0:02:11]}  g6 {[%clk 0:01:40]} 16. Nf5 {[%clk 0:01:59]}  gxf5 {[%clk 0:01:39]} 17. exf5 {[%clk 0:02:00]}  Rac8 {[%clk 0:01:05]} 18. f6 {[%clk 0:01:55]}  Nb4 {[%clk 0:00:51]} 19. Qd2 {[%clk 0:01:48]}  Qxc2+ {[%clk 0:00:41]} 20. Qxc2 {[%clk 0:01:46]}  Nxc2 {[%clk 0:00:42]} 21. fxe7 {[%clk 0:01:44]}  Rfe8 {[%clk 0:00:42]} 22. Rxd6 {[%clk 0:01:41]}  Rxe7 {[%clk 0:00:41]} 23. Rxa6 {[%clk 0:01:35]}  Nxe3 {[%clk 0:00:41]} 24. fxe3 {[%clk 0:01:35]}  Nc5 {[%clk 0:00:41]} 25. Rb6 {[%clk 0:01:28]}  Ne4 {[%clk 0:00:21]} 26. Bxb5 {[%clk 0:01:25]}  Rec7 {[%clk 0:00:20]} 27. a4 {[%clk 0:01:25]}  Kh8 {[%clk 0:00:20]} 28. Rd1 {[%clk 0:01:20]}  Nxg5 {[%clk 0:00:19]} 29. h4 {[%clk 0:01:17]}  Ne4 {[%clk 0:00:19]} 30. a5 {[%clk 0:01:17]}  Ra7 {[%clk 0:00:17]} 31. a6 {[%clk 0:01:17]}  Rcc7 {[%clk 0:00:17]} 32. h5 {[%clk 0:01:15]}  Kg7 {[%clk 0:00:16]} 33. h6+ {[%clk 0:01:14]}  Kf8 {[%clk 0:00:17]} 34. Rd8+ {[%clk 0:01:14]}  Ke7 {[%clk 0:00:17]} 35. Re8# {[%clk 0:01:14]} 1-0


[Site "https://www.chess.com"]

[Event "Titled Tuesday Blitz March 21 Late 2023"]
[White "Zierk, Steven"]
[Black "Alekseenko, Kirill"]
[WhiteFideId "2034255"]
[BlackFideId "4135539"]
[WhiteElo "2494"]
[BlackElo "2683"]
[Result "0-1"]
[Round "07"]
[TimeControl "180+2"]
[Date "2023.03.21"]
[WhiteClock "0:00:11"]
[BlackClock "0:00:19"]

1. e4 {[%clk 0:03:00]}  e5 {[%clk 0:03:00]} 2. Nf3 {[%clk 0:03:00]}  Nc6 {[%clk 0:03:00]} 3. Bc4 {[%clk 0:03:01]}  Nf6 {[%clk 0:02:59]} 4. d4 {[%clk 0:03:00]}  exd4 {[%clk 0:02:57]} 5. e5 {[%clk 0:03:01]}  d5 {[%clk 0:02:56]} 6. Bb5 {[%clk 0:03:01]}  Nd7 {[%clk 0:02:46]} 7. O-O {[%clk 0:02:58]}  Be7 {[%clk 0:02:38]} 8. Bxc6 {[%clk 0:02:50]}  bxc6 {[%clk 0:02:38]} 9. Nxd4 {[%clk 0:02:50]}  Nb8 {[%clk 0:02:38]} 10. Qf3 {[%clk 0:02:47]}  O-O {[%clk 0:02:36]} 11. Nc3 {[%clk 0:02:45]}  a5 {[%clk 0:02:35]} 12. Re1 {[%clk 0:02:40]}  Ra6 {[%clk 0:02:34]} 13. Nf5 {[%clk 0:02:31]}  Bxf5 {[%clk 0:02:26]} 14. Qxf5 {[%clk 0:02:32]}  Qd7 {[%clk 0:02:21]} 15. e6 {[%clk 0:02:15]}  fxe6 {[%clk 0:02:20]} 16. Qxe6+ {[%clk 0:02:16]}  Qxe6 {[%clk 0:02:20]} 17. Rxe6 {[%clk 0:02:17]}  Bd6 {[%clk 0:02:08]} 18. Na4 {[%clk 0:02:15]}  Nd7 {[%clk 0:02:05]} 19. Bd2 {[%clk 0:02:13]}  Raa8 {[%clk 0:01:59]} 20. Rae1 {[%clk 0:02:10]}  h6 {[%clk 0:01:53]} 21. b3 {[%clk 0:02:08]}  Kf7 {[%clk 0:01:49]} 22. Kf1 {[%clk 0:02:02]}  Kg8 {[%clk 0:01:48]} 23. h4 {[%clk 0:02:01]}  Nf6 {[%clk 0:01:47]} 24. f3 {[%clk 0:01:44]}  Nh5 {[%clk 0:01:45]} 25. Be3 {[%clk 0:01:38]}  Nf4 {[%clk 0:01:39]} 26. Bxf4 {[%clk 0:01:35]}  Rxf4 {[%clk 0:01:40]} 27. Re8+ {[%clk 0:01:34]}  Rxe8 {[%clk 0:01:37]} 28. Rxe8+ {[%clk 0:01:35]}  Kf7 {[%clk 0:01:37]} 29. Ra8 {[%clk 0:01:34]}  Rxh4 {[%clk 0:01:35]} 30. Rxa5 {[%clk 0:01:33]}  Rh1+ {[%clk 0:01:36]} 31. Ke2 {[%clk 0:01:31]}  Rc1 {[%clk 0:01:37]} 32. Kd3 {[%clk 0:01:31]}  h5 {[%clk 0:01:33]} 33. c4 {[%clk 0:01:11]}  Rg1 {[%clk 0:01:33]} 34. cxd5 {[%clk 0:01:11]}  Rxg2 {[%clk 0:01:32]} 35. dxc6 {[%clk 0:01:11]}  h4 {[%clk 0:01:28]} 36. Rh5 {[%clk 0:01:09]}  g5 {[%clk 0:01:28]} 37. Nc3 {[%clk 0:01:07]}  Be5 {[%clk 0:01:17]} 38. Rh7+ {[%clk 0:00:52]}  Bg7 {[%clk 0:00:31]} 39. Nd5 {[%clk 0:00:49]}  Kg6 {[%clk 0:00:31]} 40. Rxg7+ {[%clk 0:00:46]}  Kxg7 {[%clk 0:00:32]} 41. Nxc7 {[%clk 0:00:46]}  Rxa2 {[%clk 0:00:33]} 42. Ne8+ {[%clk 0:00:38]}  Kg6 {[%clk 0:00:30]} 43. c7 {[%clk 0:00:29]}  Ra8 {[%clk 0:00:30]} 44. Nd6 {[%clk 0:00:28]}  h3 {[%clk 0:00:30]} 45. Ne4 {[%clk 0:00:17]}  h2 {[%clk 0:00:30]} 46. Ng3 {[%clk 0:00:15]}  Rc8 {[%clk 0:00:30]} 47. b4 {[%clk 0:00:15]}  Rxc7 {[%clk 0:00:30]} 48. Kd4 {[%clk 0:00:16]}  Rc1 {[%clk 0:00:23]} 49. b5 {[%clk 0:00:16]}  Rg1 {[%clk 0:00:23]} 50. b6 {[%clk 0:00:16]}  Rxg3 {[%clk 0:00:23]} 51. b7 {[%clk 0:00:16]}  h1=Q {[%clk 0:00:22]} 52. b8=Q {[%clk 0:00:16]}  Qd1+ {[%clk 0:00:21]} 53. Kc4 {[%clk 0:00:16]}  Qc2+ {[%clk 0:00:20]} 54. Kd4 {[%clk 0:00:14]}  Qd2+ {[%clk 0:00:20]} 55. Kc5 {[%clk 0:00:14]}  Qe3+ {[%clk 0:00:19]} 56. Kb4 {[%clk 0:00:11]}  Qf4+ {[%clk 0:00:19]} 0-1


[Site "https://www.chess.com"]

[Event "Titled Tuesday Blitz March 21 Late 2023"]
[White "Steinberg, Nitzan"]
[Black "Drygalov, Andrey"]
[WhiteFideId "2801795"]
[BlackFideId "24171735"]
[WhiteElo "2486"]
[BlackElo "2471"]
[Result "1/2-1/2"]
[Round "07"]
[TimeControl "180+2"]
[Date "2023.03.21"]
[WhiteClock "0:00:05"]
[BlackClock "0:00:03"]

1. e4 {[%clk 0:03:00]}  c5 {[%clk 0:03:00]} 2. Nf3 {[%clk 0:03:01]}  d6 {[%clk 0:03:00]} 3. d4 {[%clk 0:03:00]}  cxd4 {[%clk 0:03:01]} 4. Nxd4 {[%clk 0:03:01]}  Nf6 {[%clk 0:03:02]} 5. Nc3 {[%clk 0:03:02]}  a6 {[%clk 0:03:03]} 6. h4 {[%clk 0:02:58]}  e5 {[%clk 0:02:59]} 7. Nb3 {[%clk 0:02:58]}  Be6 {[%clk 0:02:56]} 8. f4 {[%clk 0:02:58]}  Qc7 {[%clk 0:02:51]} 9. f5 {[%clk 0:02:57]}  Bc4 {[%clk 0:02:49]} 10. g4 {[%clk 0:02:51]}  h6 {[%clk 0:02:40]} 11. Qf3 {[%clk 0:02:42]}  d5 {[%clk 0:02:24]} 12. Nxd5 {[%clk 0:02:05]}  Bxd5 {[%clk 0:02:14]} 13. exd5 {[%clk 0:02:05]}  Qxc2 {[%clk 0:02:13]} 14. Bd2 {[%clk 0:01:48]}  e4 {[%clk 0:02:00]} 15. Qe2 {[%clk 0:01:42]}  Qxb2 {[%clk 0:01:50]} 16. Rc1 {[%clk 0:01:24]}  Nbd7 {[%clk 0:01:47]} 17. Rg1 {[%clk 0:01:24]}  Bd6 {[%clk 0:01:26]} 18. Bc3 {[%clk 0:01:11]}  Qxe2+ {[%clk 0:01:22]} 19. Bxe2 {[%clk 0:01:12]}  Be5 {[%clk 0:01:01]} 20. Bxe5 {[%clk 0:00:57]}  Nxe5 {[%clk 0:01:02]} 21. d6 {[%clk 0:00:57]}  Rd8 {[%clk 0:00:58]} 22. g5 {[%clk 0:00:57]}  hxg5 {[%clk 0:00:58]} 23. hxg5 {[%clk 0:00:58]}  Nd5 {[%clk 0:00:58]} 24. Nc5 {[%clk 0:00:53]}  Rxd6 {[%clk 0:00:33]} 25. Nxb7 {[%clk 0:00:53]}  Rc6 {[%clk 0:00:33]} 26. Rxc6 {[%clk 0:00:50]}  Nxc6 {[%clk 0:00:33]} 27. Nd6+ {[%clk 0:00:49]}  Ke7 {[%clk 0:00:31]} 28. Nxe4 {[%clk 0:00:49]}  Rb8 {[%clk 0:00:29]} 29. Bc4 {[%clk 0:00:40]}  Ne3 {[%clk 0:00:18]} 30. Bb3 {[%clk 0:00:36]}  Nxf5 {[%clk 0:00:17]} 31. Kf2 {[%clk 0:00:32]}  Ncd4 {[%clk 0:00:17]} 32. Re1 {[%clk 0:00:33]}  Kf8 {[%clk 0:00:16]} 33. Nc5 {[%clk 0:00:32]}  Rd8 {[%clk 0:00:06]} 34. Ba4 {[%clk 0:00:31]}  g6 {[%clk 0:00:06]} 35. Nxa6 {[%clk 0:00:25]}  Ne6 {[%clk 0:00:06]} 36. Bb3 {[%clk 0:00:23]}  Nxg5 {[%clk 0:00:06]} 37. Nc5 {[%clk 0:00:21]}  Rd2+ {[%clk 0:00:07]} 38. Re2 {[%clk 0:00:19]}  Rxe2+ {[%clk 0:00:05]} 39. Kxe2 {[%clk 0:00:20]}  Ke7 {[%clk 0:00:05]} 40. a4 {[%clk 0:00:19]}  Kd6 {[%clk 0:00:05]} 41. Nb7+ {[%clk 0:00:08]}  Kc7 {[%clk 0:00:05]} 42. Na5 {[%clk 0:00:08]}  Kb6 {[%clk 0:00:04]} 43. Nc4+ {[%clk 0:00:08]}  Kc5 {[%clk 0:00:05]} 44. Kf2 {[%clk 0:00:06]}  Ne4+ {[%clk 0:00:05]} 45. Kg1 {[%clk 0:00:06]}  Nd4 {[%clk 0:00:05]} 46. Ba2 {[%clk 0:00:04]}  Nc3 {[%clk 0:00:05]} 47. Ne5 {[%clk 0:00:05]}  Nxa2 {[%clk 0:00:05]} 48. Nxf7 {[%clk 0:00:05]}  Nc6 {[%clk 0:00:03]} 49. Nh8 {[%clk 0:00:04]}  Ne5 {[%clk 0:00:03]} 50. Nxg6 {[%clk 0:00:05]}  Nxg6 {[%clk 0:00:04]} 51. a5 {[%clk 0:00:05]}  Nb4 {[%clk 0:00:02]} 52. a6 {[%clk 0:00:05]}  Nxa6 {[%clk 0:00:03]} 1/2-1/2


[Site "https://www.chess.com"]

[Event "Titled Tuesday Blitz March 21 Late 2023"]
[White "Li, Ruifeng"]
[Black "Naroditsky, Daniel"]
[WhiteFideId "2061074"]
[BlackFideId "2026961"]
[WhiteElo "2441"]
[BlackElo "2633"]
[Result "1-0"]
[Round "07"]
[TimeControl "180+2"]
[Date "2023.03.21"]
[WhiteClock "0:01:26"]
[BlackClock "0:00:34"]

1. b3 {[%clk 0:03:00]}  b5 {[%clk 0:02:58]} 2. Bb2 {[%clk 0:03:01]}  Bb7 {[%clk 0:02:58]} 3. Nf3 {[%clk 0:03:00]}  Nf6 {[%clk 0:02:58]} 4. e3 {[%clk 0:03:01]}  a6 {[%clk 0:02:58]} 5. c4 {[%clk 0:02:58]}  b4 {[%clk 0:02:55]} 6. d4 {[%clk 0:02:58]}  e6 {[%clk 0:02:54]} 7. Bd3 {[%clk 0:02:57]}  Be7 {[%clk 0:02:53]} 8. g4 {[%clk 0:02:50]}  Ne4 {[%clk 0:02:39]} 9. Rg1 {[%clk 0:02:42]}  O-O {[%clk 0:02:35]} 10. Nbd2 {[%clk 0:02:40]}  Nxd2 {[%clk 0:02:10]} 11. Nxd2 {[%clk 0:02:40]}  c5 {[%clk 0:02:11]} 12. dxc5 {[%clk 0:02:32]}  Qc7 {[%clk 0:02:10]} 13. Qc2 {[%clk 0:02:28]}  h6 {[%clk 0:02:06]} 14. O-O-O {[%clk 0:02:26]}  a5 {[%clk 0:02:03]} 15. f4 {[%clk 0:02:16]}  a4 {[%clk 0:02:01]} 16. g5 {[%clk 0:02:15]}  h5 {[%clk 0:01:43]} 17. Rg3 {[%clk 0:02:08]}  axb3 {[%clk 0:01:43]} 18. axb3 {[%clk 0:02:04]}  Rc8 {[%clk 0:01:07]} 19. Rh3 {[%clk 0:02:03]}  Na6 {[%clk 0:01:03]} 20. Rxh5 {[%clk 0:01:43]}  Nxc5 {[%clk 0:01:03]} 21. Be2 {[%clk 0:01:29]}  Bd6 {[%clk 0:00:33]} 22. Qh7+ {[%clk 0:01:26]}  Kf8 {[%clk 0:00:34]} 23. Qxg7+ {[%clk 0:01:26]}  Ke8 {[%clk 0:00:34]} 24. Rh8+ {[%clk 0:01:26]} 1-0


[Site "https://www.chess.com"]

[Event "Titled Tuesday Blitz March 21 Late 2023"]
[White "Erigaisi Arjun"]
[Black "Rasulov, Vugar"]
[WhiteFideId "35009192"]
[BlackFideId "13402390"]
[WhiteElo "2737"]
[BlackElo "2509"]
[Result "1-0"]
[Round "07"]
[TimeControl "180+2"]
[Date "2023.03.21"]
[WhiteClock "0:00:05"]
[BlackClock "0:00:03"]

1. c4 {[%clk 0:03:00]}  Nf6 {[%clk 0:03:00]} 2. Nc3 {[%clk 0:03:00]}  c6 {[%clk 0:03:00]} 3. e4 {[%clk 0:03:00]}  d5 {[%clk 0:02:56]} 4. e5 {[%clk 0:03:01]}  Ne4 {[%clk 0:02:50]} 5. d4 {[%clk 0:03:00]}  Nxc3 {[%clk 0:02:50]} 6. bxc3 {[%clk 0:03:01]}  g6 {[%clk 0:02:49]} 7. h4 {[%clk 0:02:59]}  c5 {[%clk 0:02:41]} 8. h5 {[%clk 0:02:58]}  Bg7 {[%clk 0:02:35]} 9. Nf3 {[%clk 0:02:53]}  cxd4 {[%clk 0:02:33]} 10. cxd4 {[%clk 0:02:53]}  Nc6 {[%clk 0:02:32]} 11. h6 {[%clk 0:02:43]}  Bf8 {[%clk 0:02:31]} 12. Rb1 {[%clk 0:02:43]}  e6 {[%clk 0:02:29]} 13. cxd5 {[%clk 0:02:39]}  exd5 {[%clk 0:02:29]} 14. Be2 {[%clk 0:02:28]}  Be7 {[%clk 0:02:23]} 15. Be3 {[%clk 0:02:26]}  O-O {[%clk 0:02:22]} 16. Kf1 {[%clk 0:02:26]}  b6 {[%clk 0:02:20]} 17. Ne1 {[%clk 0:02:22]}  Bf5 {[%clk 0:02:18]} 18. Rc1 {[%clk 0:02:22]}  Rc8 {[%clk 0:02:18]} 19. g4 {[%clk 0:02:21]}  Be6 {[%clk 0:02:14]} 20. f4 {[%clk 0:02:21]}  f6 {[%clk 0:02:10]} 21. exf6 {[%clk 0:02:09]}  Bxf6 {[%clk 0:02:11]} 22. Kg2 {[%clk 0:02:05]}  Na5 {[%clk 0:02:04]} 23. Nd3 {[%clk 0:02:02]}  Rxc1 {[%clk 0:02:02]} 24. Qxc1 {[%clk 0:02:00]}  Nc4 {[%clk 0:02:02]} 25. Bf2 {[%clk 0:02:00]}  Qd7 {[%clk 0:01:59]} 26. Qd1 {[%clk 0:01:59]}  Nd6 {[%clk 0:01:48]} 27. Ne5 {[%clk 0:01:55]}  Bxe5 {[%clk 0:01:47]} 28. dxe5 {[%clk 0:01:52]}  Nc4 {[%clk 0:01:36]} 29. Bxc4 {[%clk 0:01:24]}  dxc4 {[%clk 0:01:37]} 30. Qxd7 {[%clk 0:01:25]}  Bxd7 {[%clk 0:01:38]} 31. Kg3 {[%clk 0:01:26]}  c3 {[%clk 0:01:33]} 32. Rc1 {[%clk 0:00:58]}  Rc8 {[%clk 0:01:33]} 33. Kh4 {[%clk 0:00:59]}  c2 {[%clk 0:01:12]} 34. Kg5 {[%clk 0:00:59]}  Rc3 {[%clk 0:01:02]} 35. Be1 {[%clk 0:00:54]}  Rc5 {[%clk 0:00:56]} 36. Bb4 {[%clk 0:00:47]}  Rc4 {[%clk 0:00:51]} 37. Bd6 {[%clk 0:00:43]}  Ba4 {[%clk 0:00:39]} 38. f5 {[%clk 0:00:38]}  Rd4 {[%clk 0:00:40]} 39. Kf6 {[%clk 0:00:17]}  Rxg4 {[%clk 0:00:34]} 40. e6 {[%clk 0:00:17]}  gxf5 {[%clk 0:00:31]} 41. Kxf5 {[%clk 0:00:17]}  Rg2 {[%clk 0:00:28]} 42. Kf6 {[%clk 0:00:08]}  a5 {[%clk 0:00:21]} 43. Ke7 {[%clk 0:00:05]}  Rg6 {[%clk 0:00:17]} 44. Be5 {[%clk 0:00:01]}  Rxh6 {[%clk 0:00:15]} 45. Rf1 {[%clk 0:00:02]}  Rxe6+ {[%clk 0:00:05]} 46. Kxe6 {[%clk 0:00:03]}  Bb5 {[%clk 0:00:05]} 47. Rg1+ {[%clk 0:00:03]}  Kf8 {[%clk 0:00:04]} 48. Bd6+ {[%clk 0:00:04]}  Ke8 {[%clk 0:00:03]} 49. Rg8# {[%clk 0:00:05]} 1-0


[Site "https://www.chess.com"]